bitfinex/quotes_ETHUSD_20250807
["timestamp","ask_amount","ask_price","bid_price","bid_amount"]
[1754531726423,2.71363056,3685.1,3684.9,0.4564]
[1754531726620,4.161,3685.0,3684.9,0.4564]
[1754531727119,6.8747042,3685.0,3684.9,0.4564]
[1754531727416,5.71377785,3684.9,3684.8,0.004]
[1754531727912,7.10209108,3684.9,3684.8,0.004]
[1754531728281,8.59079108,3684.9,3684.8,0.004]
[1754531728483,8.13719108,3684.9,3684.8,0.004]
[1754531728719,3.0,3684.2,3683.5,0.4564]
[1754531729016,5.48365303,3684.1,3683.5,0.4564]
[1754531729206,2.71451623,3683.9,3683.5,0.4564]
[1754531729407,7.163,3683.8,3682.4,0.4564]
[1754531729595,7.163,3683.8,3683.0,0.4564]
[1754531729797,3.0,3683.2,3681.9,0.81603]
[1754531729995,3.0,3683.2,3681.7,0.01958949]
[1754531729996,5.71532529,3682.8,3682.2,0.4564]
[1754531730201,9.87932529,3682.8,3682.2,0.4564]
[1754531730496,9.87932529,3682.8,3681.8,0.4564]
[1754531730497,7.9415588,3682.8,3681.8,0.4564]
[1754531730727,11.1688588,3682.8,3681.7,0.01958949]
[1754531730930,3.0,3682.7,3681.7,0.01958949]
[1754531731240,3.0,3682.5,3681.7,0.01958949]
[1754531731442,23.09506764,3681.8,3681.7,0.01958949]
[1754531731613,3.0,3681.8,3681.7,0.01958949]
[1754531731948,3.0,3681.7,3681.1,0.66287147]
[1754531732137,22.09697717,3681.7,3681.1,0.66287147]
[1754531732337,23.09551033,3681.2,3681.1,0.66287147]
[1754531732537,0.55,3681.0,3679.5,0.4564]
[1754531732716,3.0,3680.6,3679.5,0.4564]
[1754531733052,4.197,3680.5,3680.1,0.9124]
[1754531733229,1.16500685,3681.1,3679.6,0.02717686]
[1754531733425,1.15884798,3681.0,3680.2,0.9124]
[1754531733623,4.201,3680.9,3680.3,0.9124]
[1754531733929,1.15884798,3681.0,3680.4,0.9124]
[1754531734136,1.15884798,3681.0,3680.9,2.71672688]
[1754531734330,1.15884798,3681.0,3680.9,4.03679957]
[1754531735964,4.203,3682.3,3680.9,1.21123995]
[1754531736266,1.38840748,3682.8,3680.9,1.21123995]
[1754531736267,1.58205849,3683.3,3682.2,0.136]
[1754531736431,1.58205849,3683.3,3682.3,0.9124]
[1754531736760,1.58205849,3683.3,3682.4,0.136]
[1754531736761,0.136,3682.9,3682.4,0.136]
[1754531736933,1.09695849,3683.3,3682.5,0.9124]
[1754531737133,4.203,3683.2,3682.6,2.85146707]
[1754531737328,1.09695849,3683.3,3682.7,0.78714671]
[1754531737562,5.29995849,3683.3,3683.2,0.136]
[1754531737749,5.43595849,3683.3,3682.7,0.136]
[1754531737936,5.92105849,3683.3,3682.7,0.136]
[1754531738135,7.205,3683.2,3682.7,0.136]
[1754531738332,3.0,3683.1,3681.8,0.4564]
[1754531738538,0.136,3682.5,3681.0,0.456]
[1754531738739,2.71613851,3681.7,3681.4,0.136]
[1754531738937,4.21,3681.7,3681.4,0.136]
[1754531739964,4.21,3681.7,3680.1,3.0]
[1754531740169,3.0,3681.6,3680.0,0.1]
[1754531740368,2.85279436,3680.9,3680.4,0.136]
[1754531740544,2.45890049,3681.5,3680.0,0.1]
[1754531740545,4.211,3680.8,3680.0,0.1]
[1754531740746,0.136,3680.6,3680.1,0.136]
[1754531741261,0.136,3680.6,3680.0,0.1]
[1754531741262,4.213,3680.5,3680.3,0.136]
[1754531741556,0.136,3680.9,3680.3,0.136]
[1754531741735,0.136,3680.9,3680.5,2.71699522]
[1754531741736,4.213,3680.9,3680.5,2.71699522]
[1754531741935,7.213,3680.9,3680.8,0.136]
[1754531742271,7.213,3680.9,3680.3,0.4564]
[1754531742466,7.213,3680.9,3680.5,0.136]
[1754531742668,3.0,3680.9,3680.5,0.5924]
[1754531742867,4.215,3680.8,3680.5,0.5924]
[1754531743174,4.215,3680.8,3680.1,2.7173172]
[1754531743337,4.215,3680.8,3680.4,0.136]
[1754531743538,3.0,3680.9,3680.4,0.136]
[1754531743866,3.0,3680.9,3680.7,0.136]
[1754531743867,4.214,3680.9,3680.7,0.136]
[1754531744067,3.136,3681.4,3680.7,0.136]
[1754531744235,3.0,3681.2,3680.7,0.136]
[1754531744433,3.0,3681.2,3680.9,0.136]
[1754531744664,0.136,3681.4,3680.9,0.136]
[1754531744880,2.71607006,3681.8,3680.9,3.17305747]
[1754531745182,3.4851,3681.6,3680.0,0.1]
[1754531745340,0.4851,3681.6,3680.2,2.71724362]
[1754531745655,0.4851,3681.6,3680.0,0.1]
[1754531745656,4.216,3681.5,3681.1,0.136]
[1754531745864,5.1537,3681.4,3681.1,0.136]
[1754531746079,3.9387,3681.3,3680.2,2.71723621]
[1754531746244,2.71663908,3681.1,3680.2,3.04454671]
[1754531746437,4.215,3681.0,3680.7,0.136]
[1754531746656,5.1537,3681.0,3680.0,0.5564]
[1754531746876,5.2897,3681.0,3680.5,0.136]
[1754531747176,4.216,3680.9,3680.5,0.136]
[1754531747344,5.1547,3680.9,3680.5,0.136]
[1754531747545,0.9387,3680.8,3680.5,0.136]
[1754531747845,0.9387,3680.8,3680.4,0.136]
[1754531748164,0.9387,3680.8,3680.0,0.1]
[1754531748165,0.9387,3680.7,3680.3,0.136]
[1754531748374,0.9387,3680.6,3680.3,0.136]
[1754531748578,4.215,3680.5,3680.0,0.1]
[1754531748879,0.9387,3680.4,3680.1,0.136]
[1754531749239,4.215,3680.4,3680.1,0.136]
[1754531749445,3.0,3680.3,3680.1,0.136]
[1754531749648,3.4851,3680.3,3680.1,0.136]
[1754531749947,0.4735,3680.2,3680.1,0.136]
[1754531750700,0.4735,3680.2,3680.0,0.1]
[1754531750863,0.5658,3680.2,3680.0,0.1]
[1754531751184,0.9033,3680.1,3680.0,0.1]
[1754531751383,0.136,3680.2,3680.0,2.81736635]
[1754531751547,0.4735,3680.8,3680.3,2.7171492]
[1754531751749,0.136,3680.7,3680.3,2.71710773]
[1754531752160,4.217,3680.6,3680.2,2.85324241]
[1754531752572,3.0,3681.1,3680.2,2.85324241]
[1754531752573,4.217,3680.5,3680.4,2.71709596]
[1754531752882,4.217,3680.5,3680.4,0.136]
[1754531753382,4.216,3680.5,3680.4,0.136]
[1754531754184,4.46697627,3680.5,3680.4,0.136]
[1754531754691,4.94047627,3680.5,3680.4,0.136]
[1754531754857,4.6895,3680.5,3680.4,0.136]
[1754531755390,11.87113927,3680.5,3680.4,0.136]
[1754531755553,11.87113927,3680.5,3680.0,0.1]
[1754531755554,5.71731746,3680.1,3680.0,0.1]
[1754531755749,5.71761284,3679.7,3679.6,0.002]
[1754531755953,10.07261284,3679.7,3679.6,0.002]
[1754531756188,10.88506651,3679.7,3678.6,0.136]
[1754531756378,10.88506651,3679.7,3677.9,2.85493898]
[1754531756379,0.136,3678.7,3677.9,2.85493898]
[1754531756575,4.224,3678.6,3678.1,0.136]
[1754531756777,4.224,3678.6,3678.3,0.3855]
[1754531757018,2.71857329,3678.4,3678.3,0.3855]
[1754531757329,3.0,3677.2,3674.8,0.4705]
[1754531757471,2.72049621,3675.8,3674.8,0.4705]
[1754531757673,2.72071826,3675.5,3674.4,0.4705]
[1754531757989,10.43366558,3675.4,3674.4,0.4705]
[1754531758170,3.0,3675.3,3674.0,0.4705]
[1754531758574,3.0,3675.4,3674.1,0.4526]
[1754531758799,3.136,3675.4,3674.8,0.136]
[1754531758999,0.136,3675.4,3674.8,0.136]
[1754531759200,0.136,3676.0,3675.3,0.136]
[1754531759408,3.41284962,3678.4,3675.4,0.9231]
[1754531759409,4.324,3676.7,3675.4,0.9231]
[1754531759612,0.55,3676.4,3674.7,0.4705]
[1754531759821,3.0,3676.2,3674.7,0.4705]
[1754531760034,3.6235742,3676.1,3674.7,0.4705]
[1754531760317,0.9033,3676.0,3675.4,2.720752]
[1754531760515,4.341,3675.9,3675.2,0.4705]
[1754531760777,4.341,3675.9,3674.7,0.4705]
[1754531760920,4.341,3675.9,3674.7,3.19175122]
[1754531761127,0.4298,3676.4,3674.8,1.28753512]
[1754531761283,4.343,3676.5,3674.9,0.9231]
[1754531761483,0.4298,3676.4,3675.1,2.72101439]
[1754531761697,0.4298,3676.4,3675.0,0.4705]
[1754531761698,0.4735,3676.3,3675.0,0.4705]
[1754531761927,0.4298,3676.2,3675.2,2.72087899]
[1754531762110,0.4298,3676.2,3675.0,3.19158768]
[1754531762310,1.99992944,3676.2,3675.0,0.4705]
[1754531762526,1.99992944,3676.2,3674.6,0.4705]
[1754531762527,0.9033,3676.1,3674.6,0.4705]
[1754531762689,1.09662944,3676.2,3674.6,0.4705]
[1754531762693,3.0,3675.9,3674.6,0.4705]
[1754531762890,0.9033,3675.8,3674.6,0.4705]
[1754531763091,4.348,3675.8,3675.4,2.72072304]
[1754531763301,4.348,3675.8,3675.1,0.4705]
[1754531763625,0.9033,3676.2,3675.1,0.78965724]
[1754531763789,1.59369303,3677.1,3676.3,2.72009981]
[1754531764123,0.9033,3677.0,3675.4,0.4705]
[1754531764324,1.12019303,3677.1,3674.3,0.4705]
[1754531764325,3.0,3676.6,3674.3,0.4705]
[1754531764527,3.0,3676.0,3674.3,3.19204778]
[1754531764827,2.72084886,3675.4,3673.9,0.4705]
[1754531765035,14.05379762,3676.1,3673.9,0.4705]
[1754531765036,0.4298,3676.3,3674.0,0.4526]
[1754531765331,1.12019303,3677.1,3676.1,2.72021419]
[1754531765631,1.12019303,3677.1,3676.4,2.7200152]
[1754531765925,1.12019303,3677.1,3676.5,2.71996804]
[1754531766135,1.67291233,3677.1,3676.2,0.4705]
[1754531766294,0.9033,3677.0,3675.4,0.9231]
[1754531766490,3.62292813,3677.0,3675.7,2.72051753]
[1754531766696,7.12771499,3676.9,3675.7,2.72051753]
[1754531766899,4.408,3676.9,3675.8,0.4705]
[1754531767196,4.407,3676.9,3675.8,0.9231]
[1754531767435,4.407,3676.9,3676.0,2.7203482]
[1754531767596,4.407,3676.9,3676.1,2.72026256]
[1754531767922,3.0,3676.8,3675.9,0.4705]
[1754531768138,0.9033,3676.8,3676.0,2.72034791]
[1754531768411,0.9033,3676.7,3674.7,6.534]
[1754531768613,2.72059756,3675.7,3674.8,0.69866]
[1754531768936,2.72059756,3675.7,3674.1,3.19224967]
[1754531768937,0.9033,3675.6,3674.1,3.19224967]
[1754531769142,2.7208888,3675.3,3674.0,2.72181311]
[1754531769437,4.41,3675.3,3674.1,0.4705]
[1754531769646,0.136,3675.4,3674.8,0.136]
[1754531769797,0.4298,3676.3,3674.9,3.19166248]
[1754531770134,0.136,3676.4,3676.3,2.72012621]
[1754531770339,0.136,3676.4,3676.1,2.7202194]
[1754531770633,6.9648,3676.9,3676.3,2.72012621]
[1754531770836,0.4735,3677.3,3676.0,0.4705]
[1754531770995,4.414,3677.2,3676.7,2.71979902]
[1754531771198,0.136,3677.5,3677.0,2.71960837]
[1754531771396,0.136,3677.8,3677.0,3.19010837]
[1754531771701,0.136,3677.8,3676.9,2.85566979]
[1754531772027,0.136,3677.8,3675.8,0.4705]
[1754531772028,0.9033,3677.7,3675.8,0.4705]
[1754531772228,0.136,3676.7,3676.2,0.136]
[1754531772415,0.136,3676.7,3676.4,2.71999414]
[1754531772617,0.4298,3677.1,3676.4,2.71999196]
[1754531772826,0.136,3676.9,3676.4,0.6065]
[1754531773030,0.136,3676.9,3676.4,0.136]
[1754531773363,3.62309586,3676.8,3676.2,0.136]
[1754531773541,0.136,3676.6,3676.1,0.136]
[1754531773908,3.62330559,3676.5,3676.1,0.136]
[1754531774104,3.62330559,3676.5,3675.5,0.4705]
[1754531774105,0.136,3676.4,3675.5,0.4705]
[1754531774410,0.136,3676.5,3676.0,2.72027556]
[1754531774713,2.7203482,3676.0,3675.9,0.136]
[1754531774920,3.89568302,3676.0,3675.9,0.136]
[1754531775134,6.89568302,3676.0,3675.9,0.136]
[1754531775335,2.7207527,3675.5,3674.4,0.4705]
[1754531775537,3.0,3675.9,3674.5,2.72144365]
[1754531775784,1.430775,3675.9,3674.6,1.24229436]
[1754531775944,1.430775,3675.9,3674.7,0.4705]
[1754531776113,5.72057141,3675.7,3674.7,0.4705]
[1754531776315,2.72065412,3675.6,3674.7,0.4705]
[1754531776657,0.4298,3676.0,3674.7,0.4705]
[1754531776860,4.413,3676.1,3674.7,0.4705]
[1754531777155,2.72049153,3675.9,3675.0,2.72105717]
[1754531777305,2.72049153,3675.9,3675.1,2.72100269]
[1754531777509,2.72055037,3675.8,3674.7,0.83495648]
[1754531777712,0.4298,3676.0,3674.8,0.40089153]
[1754531777926,3.15015446,3676.0,3674.9,2.72115703]
[1754531778127,0.4298,3676.0,3674.7,0.4705]
[1754531778339,3.15015891,3676.0,3674.9,2.72116248]
[1754531778554,4.8865,3676.1,3674.8,0.4705]
[1754531778763,4.412,3676.0,3675.2,2.72087622]
[1754531779106,4.412,3676.0,3675.2,2.72093403]
[1754531779310,4.412,3676.0,3675.1,3.19148974]
[1754531779565,4.411,3676.0,3675.2,3.1914276]
[1754531779734,2.7204222,3675.9,3675.2,0.4705]
[1754531780068,2.72052069,3675.8,3675.0,2.72108636]
[1754531780277,2.72052069,3675.8,3674.9,2.72115392]
[1754531780431,0.92,3675.7,3674.2,0.4764]
[1754531780632,0.4424,3675.6,3674.2,0.4764]
[1754531780837,2.72073174,3675.5,3674.6,2.72133311]
[1754531781147,2.72081471,3675.4,3674.6,2.72133311]
[1754531781357,3.16328606,3675.3,3674.2,3.1980549]
[1754531781665,2.72110246,3675.0,3674.2,2.7216549]
[1754531781880,3.16328606,3675.3,3674.6,2.72138374]
[1754531781881,0.4424,3675.3,3674.6,2.72138374]
[1754531782179,2.72095413,3675.2,3674.3,0.4764]
[1754531782329,2.72095413,3675.2,3674.3,3.19799139]
[1754531782530,0.4424,3675.3,3674.3,0.4764]
[1754531782842,4.412,3675.3,3674.3,0.4764]
[1754531783036,0.4776,3675.2,3674.1,2.72169186]
[1754531783225,0.92,3675.1,3673.9,0.002]
[1754531783427,2.72182906,3674.0,3673.9,0.002]
[1754531783637,3.26618068,3674.0,3673.9,0.002]
[1754531783873,3.0,3674.3,3673.9,0.002]
[1754531784029,4.441,3674.3,3673.9,0.002]
[1754531784228,0.4424,3674.2,3673.9,0.002]
[1754531784632,0.92,3674.8,3674.1,2.72169277]
[1754531784983,4.441,3674.7,3674.0,2.72178723]
[1754531785133,4.441,3674.7,3673.9,0.002]
[1754531785481,0.136,3674.3,3673.9,0.002]
[1754531786271,4.441,3674.7,3674.0,0.4764]
[1754531786483,4.441,3674.7,3673.9,0.002]
[1754531786632,3.64138464,3674.6,3673.9,0.002]
[1754531786980,3.52976421,3674.5,3673.9,0.002]
[1754531787228,1.72823846,3674.5,3673.9,0.002]
[1754531787388,0.136,3674.1,3673.9,0.002]
[1754531788218,0.92,3674.9,3674.0,0.4764]
[1754531788419,0.136,3674.7,3674.3,2.72159381]
[1754531788573,2.72102556,3675.1,3674.0,0.4764]
[1754531788574,0.4424,3675.1,3674.0,0.4764]
[1754531788772,4.44,3675.0,3674.4,2.7214958]
[1754531789011,0.136,3674.9,3674.2,0.136]
[1754531789198,0.136,3674.9,3674.2,2.85767209]
[1754531789398,0.136,3674.9,3674.3,2.7215412]
[1754531789722,3.0,3674.7,3674.2,0.136]
[1754531789871,3.0,3674.7,3673.9,0.002]
[1754531789872,0.50184,3674.8,3673.9,0.4784]
[1754531790076,0.136,3674.7,3674.2,0.136]
[1754531790277,0.136,3674.7,3674.2,0.6124]
[1754531790587,4.44,3675.6,3674.9,2.7210898]
[1754531790844,3.0,3676.2,3674.5,0.4764]
[1754531790992,0.92,3675.5,3674.4,2.72153276]
[1754531791322,2.7213138,3674.7,3673.9,2.7238891]
[1754531791491,0.4424,3674.7,3673.9,0.002]
[1754531791693,0.92,3674.6,3673.9,0.002]
[1754531791897,2.7214587,3674.5,3673.9,0.002]
[1754531792074,7.1624587,3674.5,3673.9,0.002]
[1754531792279,2.72169678,3674.2,3673.9,0.002]
[1754531792478,2.72161771,3674.3,3673.9,0.002]
[1754531792694,1.08040823,3674.3,3673.9,0.002]
[1754531792924,0.4424,3674.7,3673.9,0.002]
[1754531793233,3.0,3674.5,3673.9,2.7239001]
[1754531793523,4.438,3674.5,3673.9,0.002]
[1754531793734,4.438,3674.5,3674.1,2.72174179]
[1754531793910,4.436,3674.5,3673.9,0.002]
[1754531794223,4.436,3674.5,3674.0,2.72176831]
[1754531794423,4.436,3674.5,3673.9,2.7239008]
[1754531795195,4.436,3674.5,3674.0,2.72182713]
[1754531795406,2.72132094,3674.7,3673.9,0.002]
[1754531795595,0.4424,3675.0,3674.0,0.4764]
[1754531795803,4.432,3674.6,3674.0,0.4764]
[1754531795992,0.4424,3675.0,3674.0,0.4764]
[1754531796191,4.431,3674.9,3674.0,0.4764]
[1754531796395,0.4424,3675.0,3674.3,2.72160138]
[1754531796601,0.4424,3675.0,3674.4,2.72151662]
[1754531796913,4.429,3674.9,3674.4,0.4764]
[1754531798001,4.43,3674.9,3674.4,2.72152979]
[1754531798229,4.43,3674.9,3674.5,0.4764]
[1754531798429,0.4424,3674.8,3674.1,2.72168675]
[1754531798584,3.16365445,3674.8,3674.1,2.72168675]
[1754531798783,0.4424,3674.8,3674.1,2.72174269]
[1754531798979,0.4424,3674.8,3673.9,0.002]
[1754531798980,3.19891058,3674.7,3673.9,0.002]
[1754531799224,3.0,3674.5,3673.9,0.002]
[1754531799407,7.14955131,3674.4,3673.9,0.002]
[1754531799729,4.428,3674.4,3673.9,0.002]
[1754531799884,3.16406516,3674.3,3673.9,0.002]
[1754531800084,0.4424,3674.3,3673.9,0.002]
[1754531800285,0.4424,3675.2,3674.0,0.4764]
[1754531800537,2.8572537,3674.8,3674.3,0.136]
[1754531800734,2.8572537,3674.8,3673.9,0.002]
[1754531800735,0.92,3674.7,3673.9,0.002]
[1754531800904,4.561,3674.6,3674.1,0.136]
[1754531801280,0.136,3674.9,3674.2,0.4764]
[1754531801533,5.345,3674.8,3673.9,0.002]
[1754531801685,0.136,3674.4,3673.9,0.138]
[1754531801885,0.5784,3674.4,3673.9,0.138]
[1754531802532,0.136,3674.4,3673.9,0.138]
[1754531802836,0.136,3674.1,3673.9,0.002]
[1754531803146,2.72182906,3674.0,3673.9,0.002]
[1754531803484,0.4424,3674.0,3673.9,0.002]
[1754531803685,2.72182906,3674.0,3673.9,0.002]
[1754531803890,4.426,3674.2,3673.9,0.002]
[1754531804116,4.562,3674.2,3673.9,0.002]
[1754531804316,7.28369395,3674.2,3673.9,0.002]
[1754531804630,0.136,3674.4,3673.9,0.6144]
[1754531804832,4.425,3674.3,3673.9,0.6144]
[1754531804986,4.425,3674.3,3673.9,3.33630104]
[1754531805187,4.56,3674.4,3674.0,0.4764]
[1754531805509,4.424,3674.4,3673.9,2.85988307]
[1754531805715,4.424,3674.4,3673.9,0.6144]
[1754531805910,4.424,3674.4,3673.9,2.85986404]
[1754531806119,4.424,3674.4,3674.0,0.4764]
[1754531806280,4.424,3674.4,3673.9,0.138]
[1754531806485,4.424,3674.4,3674.0,0.4764]
[1754531806687,4.423,3674.4,3673.9,0.138]
[1754531806927,0.4424,3674.3,3673.9,0.138]
[1754531807785,4.423,3674.4,3673.9,0.6144]
[1754531808023,4.8654,3674.4,3673.9,0.138]
[1754531808232,4.423,3674.4,3673.9,0.138]
[1754531808434,0.136,3674.1,3673.9,0.002]
[1754531808634,2.85778274,3674.1,3673.9,0.002]
[1754531808932,0.5784,3674.1,3673.9,0.002]
[1754531809797,0.4424,3674.5,3673.9,0.002]
[1754531810007,0.4521,3675.5,3674.0,0.4655]
[1754531810326,0.136,3674.9,3674.3,0.136]
[1754531810488,4.414,3674.8,3674.4,2.72152515]
[1754531810841,3.96786645,3675.4,3674.6,2.72131551]
[1754531810986,10.13488368,3675.3,3674.5,0.4655]
[1754531811190,2.72095742,3675.2,3674.5,0.4655]
[1754531811390,4.412,3675.1,3674.7,2.72128957]
[1754531811643,4.412,3675.1,3674.5,0.6015]
[1754531812205,4.411,3675.0,3674.6,2.72138464]
[1754531812399,0.498,3675.3,3674.7,0.4655]
[1754531812697,0.136,3675.2,3674.7,0.4655]
[1754531812893,0.498,3675.6,3674.8,0.3322831]
[1754531813120,0.136,3675.4,3675.0,2.72102001]
[1754531813319,6.54,3675.7,3675.1,0.4655]
[1754531813533,4.409,3675.5,3675.2,0.136]
[1754531813731,4.408,3675.5,3675.2,0.136]
[1754531813907,0.136,3675.7,3675.3,2.72084892]
[1754531814111,4.408,3675.6,3675.2,2.85692485]
[1754531814431,0.136,3675.7,3675.3,0.4655]
[1754531814631,0.136,3676.2,3675.6,2.72062467]
[1754531816111,0.001,3677.1,3676.4,0.136]
[1754531816316,4.404,3677.0,3676.4,2.85604421]
[1754531816515,4.404,3677.0,3676.6,0.136]
[1754531816725,4.404,3676.9,3676.6,2.85586425]
[1754531816929,4.404,3676.9,3676.6,0.136]
[1754531816930,4.902,3676.9,3676.6,0.136]
[1754531817108,4.403,3676.9,3676.6,0.136]
[1754531817438,4.403,3676.9,3676.5,2.71997652]
[1754531817616,0.136,3677.0,3676.6,0.4655]
[1754531817813,4.403,3676.9,3676.6,0.4655]
[1754531818138,0.001,3677.1,3676.7,2.71982843]
[1754531818334,0.001,3677.1,3677.0,0.136]
[1754531818910,0.001,3677.1,3677.0,3.32110837]
[1754531819105,0.001,3677.1,3677.0,3.18510837]
[1754531819307,0.4531,3677.1,3677.0,0.136]
[1754531819528,0.4531,3677.1,3676.3,0.4655]
[1754531819529,0.9511,3677.1,3676.6,0.136]
[1754531819801,0.9501,3677.0,3676.6,0.136]
[1754531820040,0.001,3677.1,3676.6,0.136]
[1754531820243,0.001,3677.1,3676.6,2.85588367]
[1754531820444,0.001,3677.1,3677.0,2.71960837]
[1754531820824,0.001,3677.1,3677.0,2.74680445]
[1754531821050,0.001,3677.1,3677.0,3.64960837]
[1754531821565,0.001,3677.1,3677.0,3.67680445]
[1754531821770,0.001,3677.1,3677.0,4.43886092]
[1754531821935,0.001,3677.1,3677.0,3.97436092]
[1754531822574,0.001,3677.1,3677.0,4.43886092]
[1754531822780,0.001,3677.1,3677.0,3.97436092]
[1754531822976,0.001,3677.1,3677.0,4.43886092]
[1754531823486,0.001,3677.1,3677.0,3.97436092]
[1754531824765,0.001,3677.1,3677.0,1.25475255]
[1754531825080,0.2495,3676.8,3676.3,0.4655]
[1754531825381,0.2495,3676.8,3676.6,2.85589289]
[1754531825742,0.2495,3676.8,3676.6,0.136]
[1754531826385,0.4521,3676.7,3676.6,0.136]
[1754531826746,0.9501,3676.7,3676.1,2.72026351]
[1754531826946,0.2495,3676.8,3676.5,0.136]
[1754531827468,0.7016,3676.8,3676.5,0.136]
[1754531827643,0.2495,3676.8,3676.5,0.136]
[1754531827844,0.4521,3676.7,3676.1,3.43229858]
[1754531828044,0.4521,3676.7,3676.0,0.136]
[1754531828045,2.71998695,3676.5,3676.0,0.136]
[1754531828245,0.9501,3676.4,3676.0,0.136]
[1754531828493,0.4521,3676.3,3676.0,0.136]
[1754531828699,0.9501,3676.3,3676.0,0.136]
[1754531829011,0.9501,3676.2,3676.0,0.136]
[1754531829207,0.4521,3676.2,3676.0,0.136]
[1754531829376,0.2495,3676.8,3676.0,0.136]
[1754531829377,0.9501,3676.7,3676.0,0.6015]
[1754531829573,4.396,3676.6,3676.2,0.136]
[1754531829775,0.2495,3676.8,3676.3,0.4655]
[1754531829996,0.2495,3676.8,3676.4,0.136]
[1754531830409,0.2495,3676.8,3676.4,0.6015]
[1754531831127,0.2495,3676.8,3676.4,3.32155071]
[1754531831317,0.2495,3676.8,3676.4,0.6015]
[1754531831689,0.2495,3676.8,3676.5,0.33215664]
[1754531831895,0.2495,3676.8,3676.7,2.71983028]
[1754531832093,0.2495,3676.8,3676.7,3.78583028]
[1754531832316,0.2495,3676.8,3676.7,3.32133028]
[1754531833120,0.2495,3676.8,3676.7,3.78583028]
[1754531834219,1e-08,3677.1,3677.0,2.71960837]
[1754531834419,1e-08,3677.1,3677.0,2.88280445]
[1754531834634,1e-08,3677.1,3677.0,3.32110837]
[1754531834841,1e-08,3677.1,3677.0,2.85560837]
[1754531835295,1e-08,3677.1,3677.0,3.32110837]
[1754531835831,1e-08,3677.1,3677.0,2.85560837]
[1754531836247,1e-08,3677.1,3677.0,3.32110837]
[1754531837925,1e-08,3677.1,3677.0,3.78560837]
[1754531838249,1e-08,3677.1,3677.0,0.136]
[1754531838409,1e-08,3677.1,3675.9,0.817237]
[1754531838410,0.95010001,3677.1,3676.2,0.4655]
[1754531838614,0.9501,3677.0,3676.7,0.136]
[1754531839043,0.498,3677.0,3676.7,0.136]
[1754531839262,0.4521,3676.9,3676.7,0.136]
[1754531839545,0.9501,3676.9,3676.7,0.136]
[1754531839851,1e-08,3677.1,3676.2,2.72213912]
[1754531839852,0.9501,3676.8,3676.2,2.72213912]
[1754531840010,0.9501,3676.8,3676.5,0.136]
[1754531840211,1e-08,3677.1,3676.3,0.136]
[1754531840212,3.63827352,3676.7,3676.3,0.136]
[1754531840442,3.77432969,3676.6,3676.2,0.002]
[1754531840652,0.9184,3676.5,3676.2,0.002]
[1754531841014,0.9184,3676.4,3676.2,0.002]
[1754531841552,0.9184,3676.3,3676.2,0.002]
[1754531841724,0.4755,3676.7,3676.2,0.002]
[1754531841928,0.136,3676.4,3676.2,0.002]
[1754531843037,0.4429,3676.8,3676.2,0.002]
[1754531843244,0.4429,3676.8,3676.3,0.136]
[1754531843443,2.72004258,3676.5,3676.2,0.002]
[1754531843661,0.136,3676.4,3676.2,0.002]
[1754531844069,0.9184,3676.3,3676.2,0.002]
[1754531844542,0.136,3676.4,3676.2,0.002]
[1754531844741,0.4429,3676.6,3676.2,0.002]
[1754531845084,0.9184,3676.3,3676.2,0.002]
[1754531845884,0.136,3676.5,3676.2,0.002]
[1754531846244,0.4429,3676.4,3676.2,0.002]
[1754531846469,0.136,3676.8,3676.3,0.136]
[1754531846670,0.5789,3676.8,3676.3,0.136]
[1754531846874,0.4429,3676.7,3676.3,0.136]
[1754531847576,0.4429,3676.7,3676.4,2.72005222]
[1754531847872,1e-08,3677.1,3676.5,2.74717695]
[1754531848178,0.13600001,3677.1,3676.9,2.71967598]
[1754531848374,0.13600001,3677.1,3676.9,2.71967691]
[1754531848564,0.13600001,3677.1,3676.9,3.21845545]
[1754531848880,0.13600001,3677.1,3677.0,3.21840837]
[1754531848881,1e-08,3677.1,3677.0,3.21840837]
[1754531849042,1e-08,3677.1,3677.0,3.38160445]
[1754531849244,1e-08,3677.1,3677.0,3.82900837]
[1754531851173,1e-08,3677.1,3677.0,0.136]
[1754531851375,1e-08,3677.1,3676.2,0.4766]
[1754531851376,0.91840001,3677.1,3676.2,0.5008]
[1754531851576,0.91840001,3677.1,3676.8,0.136]
[1754531851756,0.9184,3677.0,3676.8,0.136]
[1754531851955,0.4429,3677.0,3676.8,0.136]
[1754531852257,1e-08,3677.1,3676.8,0.136]
[1754531852467,1e-08,3677.1,3677.0,0.136]
[1754531853582,1e-08,3677.1,3676.4,2.72002943]
[1754531853583,0.91840001,3677.1,3676.4,2.72002943]
[1754531853795,1.05440001,3677.1,3676.6,0.136]
[1754531853956,0.13600001,3677.1,3676.6,0.136]
[1754531854150,0.9184,3677.0,3676.6,0.136]
[1754531854356,0.4429,3677.0,3676.6,0.136]
[1754531854556,0.4429,3677.0,3676.6,2.85589696]
[1754531854989,0.4429,3677.0,3676.7,2.7198232]
[1754531855194,0.4755,3677.0,3676.6,0.136]
[1754531855489,0.9184,3676.9,3676.6,0.136]
[1754531855668,0.9184,3676.8,3676.3,2.72011893]